fUSD/lending_fUSD_20260405
["ID","MTS","AMOUNT","RATE_DAILY","PERIOD"]
[419771036,1775369443365,-500.0,0.00013698,2]
[419771038,1775369443375,-520.65331997,0.00013698,2]
[419771040,1775369443386,-500.0,0.00013698,2]
[419771042,1775369443396,-500.0,0.00013698,2]
[419771044,1775369443407,-500.0,0.00013698,2]
[419771046,1775369443417,-500.0,0.00013698,2]
[419771049,1775369443428,-500.0,0.00013698,2]
[419771051,1775369443438,-500.0,0.00013698,2]
[419771053,1775369443449,-529.29006668,0.00013698,2]
[419771055,1775369443459,-500.0,0.00013698,2]
[419771057,1775369443469,-500.0,0.00013698,2]
[419771059,1775369443479,-500.0,0.00013698,2]
[419771061,1775369443488,-500.0,0.00013698,2]
[419771063,1775369443497,-500.0,0.00013698,2]
[419771065,1775369443507,-500.0,0.00013698,2]
[419771067,1775369443517,-500.0,0.00013698,2]
[419771069,1775369443527,-500.0,0.00013698,2]
[419771071,1775369443538,-500.0,0.00013698,2]
[419771073,1775369443547,-500.0,0.00013698,2]
[419771075,1775369443557,-500.0,0.00013698,2]
[419771077,1775369443566,-500.0,0.00013698,2]
[419771079,1775369443576,-500.0,0.00013698,2]
[419771081,1775369443586,-500.0,0.00013698,2]
[419771083,1775369443595,-500.0,0.00013698,2]
[419771085,1775369443604,-500.0,0.00013698,2]
[419771087,1775369443614,-500.0,0.00013698,2]
[419771089,1775369443623,-500.0,0.00013698,2]
[419771091,1775369443633,-500.0,0.00013698,2]
[419771093,1775369443642,-590.07729801,0.00013698,2]
[419771095,1775369443651,-500.0,0.00013698,2]
[419771097,1775369443661,-500.0,0.00013698,2]
[419771099,1775369443670,-500.0,0.00013698,2]
[419771101,1775369443680,-500.0,0.00013698,2]
[419771103,1775369443703,-543.62026915,0.00013698,2]
[419771105,1775369443713,-500.0,0.00013698,2]
[419771107,1775369443722,-500.0,0.00013698,2]
[419771109,1775369443732,-500.0,0.00013698,2]
[419771111,1775369443743,-500.0,0.00013698,2]
[419771114,1775369443753,-500.0,0.00013698,2]
[419771116,1775369443764,-500.0,0.00013698,2]
[419771118,1775369443774,-500.0,0.00013698,2]
[419771119,1775369443784,-500.0,0.00013698,2]
[419771120,1775369443794,-500.0,0.00013698,2]
[419771121,1775369443804,-500.0,0.00013698,2]
[419771122,1775369443814,-500.0,0.00013698,2]
[419771123,1775369443823,-500.0,0.00013698,2]
[419771124,1775369443834,-500.0,0.00013698,2]
[419771125,1775369443844,-500.0,0.00013698,2]
[419771126,1775369443853,-500.0,0.00013698,2]
[419771127,1775369443863,-500.0,0.00013698,2]
[419771128,1775369443873,-500.0,0.00013698,2]
[419771129,1775369443883,-500.0,0.00013698,2]
[419771130,1775369443892,-500.0,0.00013698,2]
[419771131,1775369443902,-500.0,0.00013698,2]
[419771133,1775369443913,-500.0,0.00013698,2]
[419771135,1775369443922,-500.0,0.00013698,2]
[419771137,1775369443931,-500.0,0.00013698,2]
[419771139,1775369443940,-500.0,0.00013698,2]
[419771141,1775369443950,-500.0,0.00013698,2]
[419771143,1775369443960,-500.0,0.00013698,2]
[419771145,1775369443970,-500.0,0.00013698,2]
[419771147,1775369443980,-500.0,0.00013698,2]
[419771149,1775369443989,-342.2279524,0.00013698,2]
[419771151,1775369443999,-500.0,0.00013698,2]
[419771153,1775369444009,-500.0,0.00013698,2]
[419771155,1775369444018,-500.0,0.00013698,2]
[419771157,1775369444028,-500.0,0.00013698,2]
[419771159,1775369444038,-500.0,0.00013698,2]
[419771161,1775369444048,-500.0,0.00013698,2]
[419771163,1775369444058,-500.0,0.00013698,2]
[419771165,1775369444068,-500.0,0.00013698,2]
[419771167,1775369444078,-500.0,0.00013698,2]
[419771169,1775369444087,-500.0,0.00013698,2]
[419771171,1775369444097,-500.0,0.00013698,2]
[419771173,1775369444107,-500.0,0.00013698,2]
[419771175,1775369444116,-500.0,0.00013698,2]
[419771177,1775369444126,-500.0,0.00013698,2]
[419771179,1775369444136,-500.0,0.00013698,2]
[419771181,1775369444147,-500.0,0.00013698,2]
[419771217,1775369444488,-500.0,0.00013698,2]
[419771219,1775369444498,-500.0,0.00013698,2]
[419771221,1775369444509,-900.72,0.00013698,2]
[419771223,1775369444519,-900.72,0.00013698,2]
[419771225,1775369444528,-900.72,0.00013698,2]
[419771227,1775369444538,-900.72,0.00013698,2]
[419771229,1775369444548,-900.72,0.00013698,2]
[419771231,1775369444557,-900.72,0.00013698,2]
[419771233,1775369444567,-900.72,0.00013698,2]
[419771235,1775369444576,-900.72,0.00013698,2]
[419771237,1775369444586,-900.72,0.00013698,2]
[419771239,1775369444595,-900.72,0.00013698,2]
[419771241,1775369444604,-900.72,0.00013698,2]
[419771243,1775369444614,-900.72,0.00013698,2]
[419771245,1775369444623,-900.72,0.00013698,2]
[419771247,1775369444633,-900.72,0.00013698,2]
[419771249,1775369444643,-500.0,0.00013698,2]
[419771251,1775369444652,-900.72,0.00013698,2]
[419771253,1775369444662,-900.72,0.00013698,2]
[419771255,1775369444671,-900.72,0.00013698,2]
[419771257,1775369444681,-900.72,0.00013698,2]
[419771259,1775369444691,-551.83212521,0.00013698,2]
[419771262,1775369444701,-500.0,0.00013698,2]
[419771264,1775369444711,-500.0,0.00013698,2]
[419771266,1775369444720,-500.0,0.00013698,2]
[419771268,1775369444729,-500.0,0.00013698,2]
[419771270,1775369444739,-500.0,0.00013698,2]
[419771272,1775369444749,-500.0,0.00013698,2]
[419771274,1775369444758,-500.0,0.00013698,2]
[419771276,1775369444768,-500.0,0.00013698,2]
[419771278,1775369444778,-500.0,0.00013698,2]
[419771280,1775369444787,-500.0,0.00013698,2]
[419771282,1775369444797,-500.0,0.00013698,2]
[419771284,1775369444806,-500.0,0.00013698,2]
[419771286,1775369444816,-568.81904464,0.00013698,2]
[419771288,1775369444825,-500.0,0.00013698,2]
[419771290,1775369444835,-500.0,0.00013698,2]
[419771292,1775369444844,-500.0,0.00013698,2]
[419771294,1775369444853,-500.0,0.00013698,2]
[419771296,1775369444862,-500.0,0.00013698,2]
[419771298,1775369444872,-500.0,0.00013698,2]
[419771300,1775369444881,-500.0,0.00013698,2]
[419771302,1775369444891,-500.0,0.00013698,2]
[419771304,1775369444900,-342.04805757,0.00013698,2]
[419771306,1775369444909,-5957.33,0.00013699,2]
[419771308,1775369444920,-500.0,0.00013699,2]
[419771310,1775369444930,-500.0,0.00013699,2]
[419771312,1775369444940,-210.98153295,0.00013699,2]
[419771314,1775369444950,-598.99606082,0.00013699,2]
[419771316,1775369444960,-150.67,0.00013699,2]
[419771318,1775369444969,-300.0,0.000137,2]
[419771320,1775369444979,-218.48382407,0.000137,2]
[419771322,1775369444989,-2500.0,0.000137,5]
[419771325,1775369444999,-250.0,0.00013703,2]
[419771327,1775369445009,-666.0,0.00013746,2]
[419771329,1775369445018,-22280.25424296,0.00013747,2]
[419771331,1775369445028,-1600.0,0.00013783,2]
[419771333,1775369445037,-829.16629,0.00013784,2]
[419771335,1775369445047,-2571.28259,0.00013784,2]
[419771337,1775369445057,-276.388763,0.00013784,2]
[419771339,1775369445067,-3300.0,0.000138,5]
[419771341,1775369445076,-2351.0,0.00013805,2]
[419771343,1775369445086,-666.0,0.00013853,2]
[419771345,1775369445095,-39114.2722937,0.00013854,2]
[419771347,1775369445104,-166.66,0.00013879,2]
[419771349,1775369445114,-3152.430038,0.00013885,2]
[419771351,1775369445124,-856.349615,0.00013885,2]
[419771353,1775369445134,-1595.828026,0.00013885,2]
[419771355,1775369445144,-4242.538108,0.00013885,2]
[419771357,1775369445154,-4100.0,0.000139,5]
[419771359,1775369445164,-794.445694,0.0001396,2]
[419771361,1775369445173,-4717.157011,0.0001396,2]
[419771363,1775369445182,-500.0,0.00013969,2]
[419771365,1775369445191,-500.0,0.00013969,2]
[419771367,1775369445202,-621.04576426,0.00013969,2]
[419771369,1775369445212,-538.51222016,0.00013969,2]
[419771371,1775369445221,-2000.0,0.00013988,2]
[419771373,1775369445232,-2000.0,0.00013988,2]
[419771375,1775369445241,-2000.0,0.00013988,2]
[419771377,1775369445251,-2000.0,0.00013988,2]
[419771379,1775369445260,-2000.0,0.00013988,2]
[419771381,1775369445269,-2000.0,0.00013988,2]
[419771383,1775369445279,-2000.0,0.00013988,2]
[419771385,1775369445289,-2000.0,0.00013988,2]
[419771387,1775369445298,-2000.0,0.00013988,2]
[419771389,1775369445308,-2000.0,0.00013988,2]
[419771391,1775369445317,-2000.0,0.00013988,2]
[419771393,1775369445327,-2000.0,0.00013988,2]
[419771395,1775369445337,-2000.0,0.00013988,2]
[419771397,1775369445346,-2000.0,0.00013988,2]
[419771399,1775369445356,-2000.0,0.00013988,2]
[419771401,1775369445365,-2000.0,0.00013988,2]
[419771403,1775369445375,-666.0,0.00013995,2]
[419771405,1775369445385,-22280.25424296,0.00013996,2]
[419771407,1775369445394,-2000.0,0.00013998,2]
[419771409,1775369445404,-2000.0,0.00013998,2]
[419771411,1775369445413,-2000.0,0.00013998,2]
[419771413,1775369445423,-2000.0,0.00013998,2]
[419771415,1775369445433,-2000.0,0.00013998,2]
[419771417,1775369445442,-2000.0,0.00013998,2]
[419771419,1775369445452,-2000.0,0.00013998,2]
[419771421,1775369445462,-2000.0,0.00013998,2]
[419771423,1775369445471,-2000.0,0.00013998,2]
[419771425,1775369445481,-2000.0,0.00013998,2]
[419771427,1775369445490,-2000.0,0.00013998,2]
[419771429,1775369445499,-2000.0,0.00013998,2]
[419771432,1775369445510,-2000.0,0.00013998,2]
[419771434,1775369445521,-2000.0,0.00013998,2]
[419771436,1775369445531,-2000.0,0.00013998,2]
[419771438,1775369445541,-2000.0,0.00013998,2]
[419771440,1775369445550,-2000.0,0.00013998,2]
[419771442,1775369445559,-2000.0,0.00013998,2]
[419771444,1775369445568,-2000.0,0.00013998,2]
[419771446,1775369445578,-2000.0,0.00013998,2]
[419771448,1775369445588,-1500.0,0.00014,2]
[419771450,1775369445597,-694.43072499,0.00014007,2]
[419771452,1775369445607,-578.20924308,0.00014008,2]
[419771454,1775369445616,-500.0,0.00014008,2]
[419771455,1775369445625,-500.0,0.00014008,2]
[419771456,1775369445634,-209.40437684,0.00014008,2]
[419771457,1775369445644,-1428.38747117,0.00014008,2]
[419771458,1775369445653,-500.0,0.00014008,2]
[419771459,1775369445663,-721.12765535,0.00014008,2]
[419771460,1775369445674,-200.0,0.00014008,2]
[419771461,1775369445683,-500.0,0.00014008,2]
[419771462,1775369445693,-500.0,0.00014008,2]
[419771464,1775369445720,-151.0,0.00014008,2]
[419771466,1775369445730,-500.0,0.00014008,2]
[419771469,1775369445740,-151.0,0.00014008,2]
[419771471,1775369445750,-500.0,0.00014008,2]
[419771473,1775369445759,-151.0,0.00014008,2]
[419771475,1775369445770,-500.0,0.00014008,2]
[419771477,1775369445780,-154.76515316,0.00014008,2]
[419771479,1775369445789,-500.0,0.00014008,2]
[419771481,1775369445799,-500.0,0.00014008,2]
[419771483,1775369445808,-500.0,0.00014008,2]
[419771485,1775369445818,-500.0,0.00014008,2]
[419771487,1775369445828,-250.0,0.00014008,2]
[419771489,1775369445838,-250.0,0.00014008,2]
[419771491,1775369445847,-250.0,0.00014008,2]
[419771493,1775369445857,-250.0,0.00014008,2]
[419771495,1775369445867,-250.0,0.00014008,2]
[419771497,1775369445876,-250.0,0.00014008,2]
[419771499,1775369445886,-250.0,0.00014008,2]
[419771501,1775369445896,-250.0,0.00014008,2]
[419771503,1775369445906,-250.0,0.00014008,2]
[419771505,1775369445916,-250.0,0.00014008,2]
[419771507,1775369445926,-250.0,0.00014008,2]
[419771509,1775369445936,-500.0,0.00014008,2]
[419771511,1775369445945,-500.0,0.00014008,2]
[419771513,1775369445955,-200.0,0.00014008,2]
[419771514,1775369445965,-500.0,0.00014008,2]
[419771516,1775369445975,-500.0,0.00014008,2]
[419771519,1775369445985,-500.0,0.00014008,2]
[419771520,1775369445994,-151.0,0.00014008,2]
[419771521,1775369446004,-500.0,0.00014008,2]
[419771522,1775369446014,-209.40437684,0.00014008,2]
[419771523,1775369446025,-500.0,0.00014008,2]
[419771524,1775369446034,-500.0,0.00014008,2]
[419771525,1775369446043,-743.50770149,0.00014008,2]
[419771526,1775369446053,-500.0,0.00014008,2]
[419771527,1775369446063,-500.0,0.00014008,2]
[419771528,1775369446072,-500.0,0.00014008,2]
[419771529,1775369446082,-174.61919141,0.00014008,2]
[419771530,1775369446092,-170.0,0.00014008,2]
[419771531,1775369446103,-170.0,0.00014008,2]
[419771532,1775369446111,-170.0,0.00014008,2]
[419771533,1775369446121,-170.0,0.00014008,2]
[419771534,1775369446131,-170.0,0.00014008,2]
[419771535,1775369446140,-170.0,0.00014008,2]
[419771536,1775369446150,-170.0,0.00014008,2]
[419771537,1775369446160,-170.0,0.00014008,2]
[419771538,1775369446169,-170.0,0.00014008,2]
[419771539,1775369446179,-693.3919763,0.00014008,2]
[419771540,1775369446188,-170.0,0.00014008,2]
[419771542,1775369446198,-170.0,0.00014008,2]
[419771544,1775369446207,-157.03985341,0.00014008,2]
[419771546,1775369446217,-279.9045709,0.00014008,2]
[419771548,1775369446226,-500.0,0.00014008,2]
[419771550,1775369446236,-500.0,0.00014008,2]
[419771552,1775369446245,-500.0,0.00014008,2]
[419771554,1775369446254,-500.0,0.00014008,2]
[419771556,1775369446264,-500.0,0.00014008,2]
[419771558,1775369446273,-989.7,0.0001401,2]
[419771560,1775369446283,-1183.01,0.0001401,2]
[419771561,1775369446292,-889.96,0.0001401,2]
[419771562,1775369446301,-1418.01,0.00014026,2]
[419771563,1775369446311,-1418.01,0.00014026,2]
[419771564,1775369446320,-1418.01,0.00014026,2]
[419771565,1775369446329,-1418.01,0.00014026,2]
[419771566,1775369446338,-1418.0210465,0.00014026,2]
[419771567,1775369446348,-785.83,0.00014026,2]
[419771568,1775369446357,-785.83,0.00014026,2]
[419771569,1775369446367,-785.83,0.00014026,2]
[419771570,1775369446377,-785.83,0.00014026,2]
[419771571,1775369446387,-785.93950636,0.00014026,2]
[419771572,1775369446396,-1310.34,0.00014026,2]
[419771573,1775369446405,-1310.34,0.00014026,2]
[419771574,1775369446415,-1310.34,0.00014026,2]
[419771575,1775369446426,-1310.34,0.00014026,2]
[419771576,1775369446436,-1310.47484396,0.00014026,2]
[419771577,1775369446449,-170.28,0.00014027,2]
[419771578,1775369446459,-500.0,0.00014063,2]
[419771579,1775369446468,-151.0,0.00014063,2]
[419771580,1775369446477,-2000.0,0.00014065,2]
[419771581,1775369446487,-2000.0,0.00014065,2]
[419771582,1775369446496,-2000.0,0.00014065,2]
[419771583,1775369446506,-2000.0,0.00014065,2]
[419771584,1775369446515,-2000.0,0.00014065,2]
[419771585,1775369446524,-2000.0,0.00014065,2]
[419771586,1775369446534,-2000.0,0.00014065,2]
[419771587,1775369446544,-2000.0,0.00014065,2]
[419771588,1775369446554,-2000.0,0.00014065,2]
[419771589,1775369446563,-2000.0,0.00014065,2]
[419771590,1775369446574,-2000.0,0.00014065,2]
[419771591,1775369446585,-2000.0,0.00014065,2]
[419771592,1775369446595,-2000.0,0.00014065,2]
[419771593,1775369446604,-2000.0,0.00014065,2]
[419771594,1775369446615,-2000.0,0.00014065,2]
[419771595,1775369446626,-2000.0,0.00014065,2]
[419771596,1775369446636,-2000.0,0.00014065,2]
[419771597,1775369446647,-2000.0,0.00014065,2]
[419771598,1775369446657,-500.0,0.00014118,2]
[419771599,1775369446667,-151.0,0.00014118,2]
[419771600,1775369446676,-2500.0,0.00014164,2]
[419771601,1775369446685,-39114.2722937,0.00014168,2]
[419771602,1775369446695,-500.0,0.00014173,2]
[419771603,1775369446704,-151.0,0.00014173,2]
[419771604,1775369446714,-5042.25297119,0.00014181,2]
[419771605,1775369446723,-608.3186174,0.00014221,2]
[419771606,1775369446733,-1000.0,0.00014221,2]
[419771607,1775369446743,-1000.0,0.00014221,2]
[419771608,1775369446753,-1000.0,0.00014221,2]
[419771609,1775369446762,-500.0,0.00014228,2]
[419771610,1775369446772,-151.0,0.00014228,2]
[419771611,1775369446781,-181.45,0.00014237,2]
[419771612,1775369446791,-500.0,0.00014243,2]
[419771613,1775369446800,-500.0,0.00014243,2]
[419771614,1775369446810,-424.76,0.00014244,2]
[419771615,1775369446821,-22280.25424296,0.00014245,2]
[419771621,1775369446934,-500.0,0.00014246,2]
[419771622,1775369446944,-743.80429884,0.00014247,2]
[419771623,1775369446953,-1000.0,0.00014247,2]
[419771624,1775369446962,-500.0,0.00014283,2]
[419771625,1775369446974,-151.0,0.00014283,2]
[419771626,1775369446983,-166.66,0.00014284,2]
[419771627,1775369446993,-1000.0,0.00014294,2]
[419771628,1775369447002,-840.3754952,0.00014309,2]
[419771629,1775369447013,-500.0,0.00014338,2]
[419771630,1775369447023,-151.0,0.00014338,2]
[419771631,1775369447032,-500.0,0.00014373,2]
[419771632,1775369447041,-500.0,0.00014373,2]
[419771633,1775369447052,-500.0,0.00014373,2]
[419771634,1775369447062,-500.0,0.00014373,2]
[419771635,1775369447072,-339.79133416,0.00014373,2]
[419771636,1775369447082,-500.0,0.00014373,2]
[419771638,1775369447091,-500.0,0.00014373,2]
[419771640,1775369447101,-500.0,0.00014373,2]
[419771642,1775369447110,-500.0,0.00014373,2]
[419771644,1775369447119,-500.0,0.00014373,2]
[419771646,1775369447129,-607.20051974,0.00014373,2]
[419771648,1775369447137,-500.0,0.00014373,2]
[419771651,1775369447146,-500.0,0.00014373,2]
[419771652,1775369447155,-5957.33,0.00014384,2]
[419771653,1775369447165,-500.0,0.00014393,2]
[419771654,1775369447174,-151.0,0.00014393,2]
[419771655,1775369447184,-150.0,0.000144,2]
[419771656,1775369447193,-150.0,0.000144,2]
[419771658,1775369447203,-150.0,0.000144,2]
[419771659,1775369447213,-150.0,0.000144,2]
[419771660,1775369447223,-150.0,0.000144,2]
[419771661,1775369447232,-155.75015911,0.000144,2]
[419771662,1775369447241,-150.0,0.000144,2]
[419771663,1775369447250,-150.0,0.000144,2]
[419771664,1775369447259,-150.0,0.000144,2]
[419771665,1775369447269,-150.0,0.000144,2]
[419771666,1775369447278,-150.0,0.000144,2]
[419771667,1775369447287,-150.0,0.000144,2]
[419771668,1775369447296,-150.0,0.000144,2]
[419771669,1775369447306,-150.0,0.000144,2]
[419771671,1775369447317,-155.75015911,0.00014416,2]
[419771672,1775369447326,-150.0,0.00014418,2]
[419771673,1775369447336,-150.0,0.00014422,2]
[419771674,1775369447345,-150.0,0.00014425,2]
[419771675,1775369447355,-996.49996996,0.00014425,2]
[419771676,1775369447364,-150.0,0.00014425,2]
[419771678,1775369447375,-150.0,0.00014428,2]
[419771680,1775369447384,-155.75015911,0.00014432,2]
[419771681,1775369447395,-150.0,0.00014436,2]
[419771682,1775369447405,-150.0,0.00014444,2]
[419771683,1775369447414,-150.0,0.00014447,2]
[419771684,1775369447424,-500.0,0.00014448,2]
[419771685,1775369447434,-151.0,0.00014448,2]
[419771686,1775369447444,-155.75015911,0.00014448,2]
[419771687,1775369447454,-150.0,0.00014449,2]
[419771688,1775369447464,-150.0,0.0001445,2]
[419771689,1775369447474,-840.3754952,0.0001445,2]
[419771690,1775369447484,-150.0,0.00014454,2]
[419771691,1775369447494,-150.0,0.00014456,2]
[419771692,1775369447504,-150.0,0.00014462,2]
[419771693,1775369447514,-155.75015911,0.00014465,2]
[419771694,1775369447525,-181.45,0.00014466,2]
[419771695,1775369447534,-150.0,0.00014467,2]
[419771696,1775369447544,-150.0,0.00014472,2]
[419771697,1775369447554,-150.0,0.00014474,2]
[419771698,1775369447563,-150.0,0.00014475,2]
[419771699,1775369447573,-424.76,0.00014477,2]
[419771700,1775369447583,-150.0,0.0001448,2]
[419771701,1775369447594,-155.75015911,0.00014481,2]
[419771702,1775369447603,-39114.2722937,0.00014483,2]
[419771703,1775369447612,-150.0,0.00014484,2]
[419771704,1775369447622,-150.0,0.00014489,2]
[419771705,1775369447632,-150.0,0.0001449,2]
[419771706,1775369447641,-150.0,0.00014494,2]
[419771707,1775369447651,-22280.25424296,0.00014494,2]
[419771708,1775369447660,-155.75015911,0.00014497,2]
[419771710,1775369447670,-150.0,0.00014498,2]
[419771712,1775369447680,-150.0,0.000145,2]
[419771714,1775369447690,-500.0,0.00014503,2]
[419771716,1775369447699,-151.0,0.00014503,2]
[419771718,1775369447709,-150.0,0.00014508,2]
[419771719,1775369447718,-150.0,0.00014511,2]
[419771720,1775369447728,-150.0,0.00014512,2]
[419771721,1775369447738,-155.75015911,0.00014513,2]
[419771722,1775369447747,-500.0,0.00014517,2]
[419771723,1775369447757,-500.0,0.00014517,2]
[419771724,1775369447767,-150.0,0.00014523,2]
[419771725,1775369447777,-150.0,0.00014523,2]
[419771726,1775369447787,-150.0,0.00014525,2]
[419771727,1775369447797,-150.0,0.00014526,2]
[419771728,1775369447807,-155.75015911,0.00014529,2]
[419771729,1775369447816,-150.0,0.00014533,2]
[419771730,1775369447826,-501.0,0.00014534,3]
[419771731,1775369447835,-150.0,0.0001454,2]
[419771732,1775369447845,-150.0,0.00014541,2]
[419771733,1775369447855,-150.0,0.00014544,2]
[419771734,1775369447864,-155.75015911,0.00014545,2]
[419771735,1775369447874,-150.0,0.00014548,2]
[419771736,1775369447884,-150.0,0.0001455,2]
[419771737,1775369447893,-1000.0,0.00014555,2]
[419771738,1775369447904,-150.0,0.00014556,2]
[419771739,1775369447913,-217.15233878,0.00014556,2]
[419771740,1775369447923,-200.0,0.00014556,2]
[419771741,1775369447934,-1481.23780761,0.00014556,2]
[419771742,1775369447943,-200.0,0.00014556,2]
[419771743,1775369447954,-339.62894544,0.00014556,2]
[419771744,1775369447963,-771.01748645,0.00014556,2]
[419771745,1775369447973,-181.08010149,0.00014556,2]
[419771746,1775369447982,-719.04747942,0.00014556,2]
[419771747,1775369447991,-290.26104003,0.00014556,2]
[419771748,1775369448001,-500.0,0.00014558,2]
[419771749,1775369448010,-151.0,0.00014558,2]
[419771750,1775369448020,-2528.0,0.0001456,5]
[419771751,1775369448029,-150.0,0.0001456,2]
[419771752,1775369448038,-155.75015911,0.00014562,2]
[419771753,1775369448048,-150.0,0.00014562,2]
[419771754,1775369448058,-822.41117775,0.00014565,2]
[419771755,1775369448067,-150.0,0.00014568,2]
[419771756,1775369448076,-150.0,0.00014572,2]
[419771757,1775369448086,-150.0,0.00014575,2]
[419771758,1775369448095,-155.75015911,0.00014578,2]
[419771759,1775369448105,-150.0,0.00014578,2]
[419771760,1775369448115,-150.0,0.0001458,2]
[419771761,1775369448125,-150.0,0.00014585,2]
[419771762,1775369448135,-150.0,0.00014588,2]
[419771763,1775369448145,-840.3754952,0.00014592,2]
[419771764,1775369448155,-155.75015911,0.00014594,2]
[419771765,1775369448166,-150.0,0.00014596,2]
[419771766,1775369448175,-150.0,0.00014597,2]
[419771767,1775369448185,-150.0,0.00014598,2]
[419771768,1775369448194,-989.7,0.00014598,2]
[419771769,1775369448203,-1183.01,0.00014598,2]
[419771770,1775369448212,-889.96,0.00014598,2]
[419771771,1775369448221,-500.0,0.00014599,2]
[419771772,1775369448230,-500.0,0.00014599,2]
[419771773,1775369448239,-500.0,0.00014599,2]
[419771774,1775369448248,-500.0,0.00014599,2]
[419771775,1775369448258,-615.77009816,0.00014599,2]
[419771776,1775369448267,-3428.0,0.00014599,2]
[419771777,1775369448277,-3428.0,0.00014599,2]
[419771778,1775369448286,-3428.0,0.00014599,2]
[419771779,1775369448297,-3428.0,0.00014599,2]
[419771780,1775369448306,-3428.0,0.00014599,2]
[419771781,1775369448316,-3428.0,0.00014599,2]
[419771782,1775369448326,-3428.0,0.00014599,2]
[419771783,1775369448336,-3428.0,0.00014599,2]
[419771784,1775369448345,-3428.0,0.00014599,2]
[419771785,1775369448354,-3428.0,0.00014599,2]
[419771786,1775369448363,-3428.0,0.00014599,2]
[419771787,1775369448372,-3428.0,0.00014599,2]
[419771788,1775369448381,-3428.0,0.00014599,2]
[419771789,1775369448390,-3428.0,0.00014599,2]
[419771790,1775369448399,-3428.0,0.00014599,2]
[419771791,1775369448408,-3428.0,0.00014599,2]
[419771792,1775369448417,-3428.0,0.00014599,2]
[419771793,1775369448426,-3428.0,0.00014599,2]
[419771794,1775369448436,-3428.0,0.00014599,2]
[419771795,1775369448446,-3428.0,0.00014599,2]
[419771796,1775369448454,-3428.0,0.00014599,2]
[419771797,1775369448463,-3428.0,0.00014599,2]
[419771798,1775369448473,-3428.0,0.00014599,2]
[419771799,1775369448482,-3434.0,0.00014599,2]
[419771800,1775369448491,-1363.0,0.00014599,2]
[419771801,1775369448500,-1363.0,0.00014599,2]
[419771802,1775369448509,-1363.0,0.00014599,2]
[419771803,1775369448518,-1363.0,0.00014599,2]
[419771804,1775369448528,-1363.0,0.00014599,2]
[419771805,1775369448537,-169.33060056,0.00014599,2]
[419771806,1775369448546,-1363.0,0.00014599,2]
[419771807,1775369448555,-1363.0,0.00014599,2]
[419771808,1775369448564,-1363.0,0.00014599,2]
[419771809,1775369448573,-1363.0,0.00014599,2]
[419771810,1775369448582,-1363.0,0.00014599,2]
[419771811,1775369448591,-1363.0,0.00014599,2]
[419771812,1775369448601,-1363.0,0.00014599,2]
[419771813,1775369448610,-1363.0,0.00014599,2]
[419771814,1775369448618,-1363.0,0.00014599,2]
[419771815,1775369448628,-1363.0,0.00014599,2]
[419771816,1775369448637,-1363.0,0.00014599,2]
[419771817,1775369448646,-1363.0,0.00014599,2]
[419771818,1775369448655,-1363.0,0.00014599,2]